bitfinex/quotes_SOLUSD_20240930
["timestamp","ask_amount","ask_price","bid_price","bid_amount"]
[1727711512527,6.4206,155.75,155.7,0.847778]
[1727711513139,6.4206,155.75,155.7,7.270278]
[1727711514206,6.4206,155.75,155.7,0.847778]
[1727711514427,6.4206,155.75,155.71,6.4221]
[1727711516013,8.0085074,155.74,155.7,0.847778]
[1727711516211,1.5876074,155.74,155.7,0.847778]
[1727711516420,6.4221,155.71,155.7,0.847778]
[1727711518107,21.9924,155.76,155.7,0.847778]
[1727711518325,6.4217,155.73,155.7,0.847778]
[1727711518531,1.5876074,155.72,155.7,0.847778]
[1727711518904,6.4217,155.73,155.7,0.847778]
[1727711519131,1.5876074,155.72,155.7,0.847778]
[1727711519326,8.0094074,155.72,155.7,0.847778]
[1727711519520,2.70316228,155.75,155.7,0.847778]
[1727711519719,6.4214,155.73,155.7,0.847778]
[1727711520237,1.5876074,155.72,155.7,0.847778]
[1727711520913,6.4214,155.73,155.7,0.847778]
[1727711522509,2.70316228,155.75,155.7,0.847778]
[1727711522716,28.4125,155.76,155.72,6.4216]
[1727711523137,21.9104,155.76,155.72,6.4216]
[1727711528237,25.34456623,155.8,155.74,6.4209]
[1727711528238,6.4196,155.78,155.74,6.4209]
[1727711528531,1.5876074,155.77,155.73,6.4212]
[1727711529636,1.5876074,155.77,155.74,6.4209]
[1727711529839,8.0072074,155.78,155.74,6.4209]
[1727711530343,8.0072074,155.78,155.72,22.4756]
[1727711530344,6.4201,155.76,155.72,22.4756]
[1727711530541,8.0081074,155.75,155.72,16.054]
[1727711530837,1.5876074,155.74,155.71,6.4221]
[1727711531036,6.4205,155.75,155.71,6.4221]
[1727711531712,6.4202,155.76,155.72,6.4216]
[1727711531916,23.0589,155.8,155.71,16.0552]
[1727711532338,23.0589,155.8,155.75,6.4205]
[1727711532339,6.4189,155.79,155.75,6.4205]
[1727711533123,16.4641,155.8,155.73,16.053]
[1727711533315,16.4641,155.8,155.76,6.4201]
[1727711533316,22.8827,155.8,155.76,6.4201]
[1727711534749,1.5876074,155.79,155.76,6.4201]
[1727711535039,1.5876074,155.79,155.75,22.4714]
[1727711535254,1.5876074,155.79,155.73,6.4212]
[1727711535539,6.4197,155.77,155.73,6.4212]
[1727711535750,1.5876074,155.76,155.72,16.0538]
[1727711536042,33.83032006,155.79,155.7,0.847778]
[1727711536543,6.4199,155.77,155.73,6.4213]
[1727711537248,6.4194,155.78,155.74,6.4208]
[1727711538358,1.5876074,155.77,155.74,6.4208]
[1727711538650,6.4194,155.78,155.74,6.4208]
[1727711538856,6.5325,155.79,155.73,16.0531]
[1727711539030,14.5391074,155.79,155.75,6.4203]
[1727711539230,14.5391074,155.79,155.73,16.0531]
[1727711539445,14.5391074,155.79,155.74,6.4208]
[1727711540227,8.1201074,155.79,155.74,6.4208]
[1727711540429,6.4194,155.78,155.74,6.4208]
[1727711540637,1.5876074,155.77,155.74,6.4208]
[1727711541656,8.0073074,155.77,155.73,16.0531]
[1727711541831,1.5876074,155.76,155.73,16.0531]
[1727711542252,6.4197,155.77,155.73,22.4744]
[1727711542546,6.4194,155.78,155.73,16.0531]
[1727711542751,12.9515,155.79,155.74,6.4209]
[1727711542938,14.5391074,155.79,155.75,6.4204]
[1727711543451,6.4193,155.78,155.74,6.4209]
[1727711543665,14.5391074,155.79,155.75,6.4204]
[1727711543960,22.8826,155.8,155.76,6.4201]
[1727711544125,6.419,155.79,155.75,22.4714]
[1727711544326,1.5876074,155.78,155.75,22.4714]
[1727711544553,8.0066074,155.79,155.75,22.4714]
[1727711545046,6.4194,155.78,155.74,6.4208]
[1727711545261,8.0075074,155.77,155.73,6.4213]
[1727711545551,1.5876074,155.76,155.73,6.4213]
[1727711545758,6.4199,155.77,155.73,6.4213]
[1727711546744,1.5876074,155.76,155.73,6.4213]
[1727711546942,6.4199,155.77,155.73,6.4213]
[1727711547631,6.4194,155.78,155.74,6.4208]
[1727711547831,1.5876074,155.77,155.74,6.4208]
[1727711548238,8.0073074,155.77,155.73,6.4212]
[1727711548438,6.4197,155.77,155.73,6.4212]
[1727711551933,6.3475,155.77,155.7,0.847778]
[1727711552139,15.6805,155.74,155.7,0.847778]
[1727711552354,1.5876074,155.73,155.7,0.847778]
[1727711553353,6.4218,155.72,155.7,0.847778]
[1727711553558,1.5876074,155.71,155.7,0.847778]
[1727711553763,8.0097074,155.71,155.7,0.847778]
[1727711554459,6.4221,155.71,155.7,0.847778]
[1727711554837,1.5876074,155.73,155.7,0.847778]
[1727711554838,6.4217,155.72,155.7,0.847778]
[1727711555150,6.4218,155.72,155.7,0.847778]
[1727711555458,1.5876074,155.71,155.7,0.847778]
[1727711556449,8.0097074,155.71,155.7,0.847778]
[1727711556653,6.4221,155.71,155.7,0.847778]
[1727711559260,6.4221,155.71,155.7,0.847778]
[1727711565559,1.5876074,155.73,155.7,0.847778]
[1727711566156,15.6805,155.74,155.7,0.847778]
[1727711566366,1.5876074,155.73,155.7,0.847778]
[1727711566570,6.4221,155.71,155.7,0.847778]
[1727711566748,1.5876074,155.73,155.7,0.847778]
[1727711566952,6.4219,155.72,155.7,0.847778]
[1727711567256,1.5876074,155.71,155.7,0.847778]
[1727711567762,15.6805,155.74,155.7,0.847778]
[1727711567967,15.6805,155.74,155.7,7.270178]
[1727711568274,22.1017,155.74,155.7,7.270178]
[1727711569876,1.5876074,155.73,155.7,7.270178]
[1727711570381,22.1017,155.74,155.7,7.270178]
[1727711571176,1.5876074,155.73,155.7,7.270178]
[1727711571877,15.6805,155.74,155.71,6.4221]
[1727711572168,17.2681074,155.74,155.71,6.4221]
[1727711573974,15.6805,155.74,155.71,6.4221]
[1727711574275,23.19970034,155.78,155.72,16.0542]
[1727711574463,31.5572571,155.81,155.7,0.847778]
[1727711574464,6.4392,155.81,155.73,1.28416152]
[1727711574667,17.75371418,155.82,155.73,1.28416152]
[1727711574870,24.17171418,155.82,155.77,6.4196]
[1727711575178,6.4181,155.81,155.77,6.4196]
[1727711579476,24.17141418,155.82,155.78,6.4192]
[1727711580378,1.5876074,155.81,155.76,16.05]
[1727711580572,1.5876074,155.81,155.77,6.4196]
[1727711580573,8.0056074,155.81,155.77,6.4196]
[1727711582187,1.5876074,155.81,155.73,16.0528]
[1727711582485,6.4194,155.78,155.74,6.4208]
[1727711582777,6.4185,155.8,155.76,6.4198]
[1727711582979,17.75371418,155.82,155.75,16.0507]
[1727711583288,8.0059074,155.81,155.77,6.4196]
[1727711583470,24.17141418,155.82,155.77,6.4196]
[1727711583870,8.0056074,155.81,155.77,6.4196]
[1727711584063,1.5876074,155.81,155.75,16.0507]
[1727711584265,6.4192,155.79,155.75,16.0507]
[1727711584465,1.5876074,155.78,155.75,16.0507]
[1727711585284,6.4193,155.78,155.74,6.4208]
[1727711585475,8.0074074,155.77,155.73,6.4212]
[1727711585809,1.5876074,155.76,155.72,22.4754]
[1727711586075,6.4198,155.77,155.73,6.4212]
[1727711586284,6.4194,155.78,155.72,16.0538]
[1727711586491,6.4194,155.78,155.74,6.4208]
[1727711586963,8.0070074,155.78,155.74,6.4208]
[1727711587868,1.5876074,155.77,155.74,6.4208]
[1727711588366,1.5876074,155.77,155.72,16.0538]
[1727711588572,1.5876074,155.77,155.73,6.4212]
[1727711588772,1.5876074,155.77,155.72,22.4754]
[1727711588974,6.2668,155.79,155.72,22.4754]
[1727711589166,1.5876074,155.78,155.72,22.4754]
[1727711589367,6.4204,155.76,155.72,22.4754]
[1727711589562,1.5876074,155.75,155.72,16.0538]
[1727711589767,6.4202,155.76,155.72,22.4754]
[1727711589985,1.5876074,155.75,155.72,22.4754]
[1727711590364,6.4198,155.77,155.73,6.4213]
[1727711590879,6.4194,155.78,155.73,6.4213]
[1727711591676,6.4194,155.78,155.74,6.4208]
[1727711593308,6.4205,155.75,155.72,16.0538]
[1727711594293,1.5876074,155.74,155.7,0.847778]
[1727711594468,15.6983,155.76,155.71,22.4771]
[1727711594469,8.0082074,155.75,155.71,22.4771]
[1727711595977,8.0082074,155.75,155.7,0.847778]
[1727711595978,6.4263,155.61,155.55,0.847778]
[1727711596185,35.6604,155.71,155.55,0.847778]
[1727711596186,6.4255,155.63,155.57,30.0]
[1727711596386,19.3,155.69,155.56,6.6881457]
[1727711596698,16.3604,155.71,155.55,0.847778]
[1727711596699,6.426,155.62,155.55,0.847778]
[1727711596987,1.5876074,155.61,155.55,0.847778]
[1727711597574,6.4267,155.6,155.55,0.847778]
[1727711597786,1.5876074,155.59,155.55,0.847778]
[1727711597992,8.0149074,155.59,155.55,0.847778]
[1727711598172,1.5876074,155.58,155.55,0.847778]
[1727711599081,1.5876074,155.59,155.55,0.847778]
[1727711599476,6.4263,155.61,155.55,0.847778]
[1727711599867,8.0144074,155.6,155.55,0.847778]
[1727711600818,1.5876074,155.59,155.55,0.847778]
[1727711605683,6.4268,155.6,155.55,0.847778]
[1727711606877,6.4283,155.56,155.55,0.847778]
[1727711608995,22.7863,155.56,155.55,0.847778]
[1727711609496,16.358,155.56,155.55,0.847778]
[1727711609706,17.9456074,155.56,155.55,0.847778]
[1727711609874,24.3739074,155.56,155.55,0.847778]
[1727711610391,1.5876074,155.56,155.55,0.847778]
[1727711610573,1.5876074,155.59,155.55,0.847778]
[1727711610770,6.4276,155.58,155.55,0.847778]
[1727711611092,8.0156074,155.57,155.55,0.847778]
[1727711617482,1.5876074,155.57,155.55,0.847778]
[1727711617682,1.5876074,155.6,155.55,0.847778]
[1727711617881,6.4277,155.58,155.55,0.847778]
[1727711618106,1.5876074,155.57,155.55,0.847778]
[1727711620081,19.3,155.61,155.55,0.847778]
[1727711620082,27.3159074,155.56,155.55,0.847778]
[1727711620311,6.4283,155.56,155.55,0.847778]
[1727711620682,8.0159074,155.56,155.55,0.847778]
[1727711625996,6.4283,155.56,155.55,0.847778]
[1727711629102,8.0159074,155.56,155.55,0.847778]
[1727711630112,6.4283,155.56,155.55,0.847778]
[1727711630610,8.0159074,155.56,155.55,0.847778]
[1727711631591,6.4283,155.56,155.55,0.847778]
[1727711631792,8.0159074,155.56,155.55,0.847778]
[1727711632696,6.4283,155.56,155.55,0.847778]
[1727711632895,8.0159074,155.56,155.55,0.847778]
[1727711633914,6.4283,155.56,155.55,0.847778]
[1727711634300,8.0159074,155.56,155.55,0.847778]
[1727711634504,1.5876074,155.56,155.55,0.847778]
[1727711634805,6.4283,155.56,155.55,0.847778]
[1727711635006,8.0159074,155.56,155.55,0.847778]
[1727711635921,6.4283,155.56,155.55,0.847778]
[1727711636097,8.0159074,155.56,155.55,0.847778]
[1727711637214,6.4283,155.56,155.55,0.847778]
[1727711639118,8.0159074,155.56,155.55,0.847778]
[1727711639798,1.5876074,155.56,155.55,0.847778]
[1727711639998,6.428,155.57,155.55,0.847778]
[1727711640200,1.5876074,155.56,155.55,0.847778]
[1727711640513,8.0159074,155.56,155.55,0.847778]
[1727711641204,6.4283,155.56,155.55,0.847778]
[1727711643415,1.5876074,155.59,155.55,0.847778]
[1727711643622,6.428,155.57,155.55,0.847778]
[1727711643922,1.5876074,155.56,155.55,0.847778]
[1727711646613,6.4283,155.56,155.55,0.847778]
[1727711647531,8.0159074,155.56,155.55,0.847778]
[1727711649530,36.9594074,155.56,155.42,6.69114703]
[1727711649731,6.4308,155.5,155.41,9.9125729]
[1727711649933,1.5876074,155.49,155.41,16.59922434]
[1727711650630,17.1878301,155.57,155.45,10.4125729]
[1727711650823,17.1878301,155.57,155.41,6.68665144]
[1727711650824,6.4293,155.54,155.47,10.4125729]
[1727711651128,1.5876074,155.53,155.47,10.4125729]
[1727711651332,8.0172074,155.53,155.47,10.4125729]
[1727711652140,8.0178074,155.52,155.45,10.4125729]
[1727711652323,1.5876074,155.51,155.43,10.4125729]
[1727711653035,1.5876074,155.51,155.41,13.20935144]
[1727711653036,6.4311,155.5,155.41,6.68665144]
[1727711653236,1.5876074,155.49,155.41,17.09922434]
[1727711653421,8.0189074,155.49,155.41,17.09922434]
[1727711654021,6.4313,155.49,155.41,17.09922434]
[1727711654238,1.5876074,155.48,155.41,6.68665144]
[1727711654422,1.5876074,155.48,155.42,10.4125729]
[1727711655041,1.5876074,155.5,155.42,10.4125729]
[1727711657148,6.4313,155.49,155.42,10.4125729]
[1727711657436,1.5876074,155.48,155.42,10.4125729]
[1727711659021,16.3978,155.52,155.44,10.4125729]
[1727711659223,1.5876074,155.51,155.44,10.4125729]
[1727711661441,1.5876074,155.51,155.41,6.68665144]
[1727711661646,6.4308,155.5,155.42,10.4125729]
[1727711661837,1.5876074,155.49,155.42,10.4125729]
[1727711662920,16.3978,155.52,155.42,10.4125729]
[1727711663128,6.4307,155.51,155.42,10.4125729]
[1727711664818,1.5876074,155.5,155.42,10.4125729]
[1727711665231,16.3978,155.52,155.46,10.4125729]
[1727711665518,1.5876074,155.51,155.45,10.4125729]
[1727711666937,8.0183074,155.51,155.45,10.4125729]
[1727711669152,22.8279,155.52,155.45,10.4125729]
[1727711670023,6.4323,155.47,155.42,6.5244]
[1727711670224,8.0202074,155.46,155.42,6.5244]
[1727711670444,1.5876074,155.46,155.42,6.5244]
[1727711670625,8.0201074,155.46,155.42,6.5244]
[1727711671121,1.5876074,155.45,155.38,1.1068109]
[1727711671321,6.4326,155.46,155.38,1.1068109]
[1727711672139,1.5876074,155.49,155.39,10.4125729]
[1727711672336,6.4322,155.47,155.39,10.4125729]
[1727711672745,1.5876074,155.46,155.39,10.4125729]
[1727711672939,6.4329,155.45,155.39,10.4125729]
[1727711673143,1.5876074,155.44,155.39,10.4125729]
[1727711673329,1.5876074,155.46,155.39,10.4125729]
[1727711674747,1.5876074,155.45,155.39,10.4125729]
[1727711675044,6.4314,155.49,155.41,10.4125729]
[1727711675633,1.5876074,155.48,155.41,10.4125729]
[1727711677348,6.4314,155.49,155.41,10.4125729]
[1727711678758,5.77877924,155.54,155.38,1.1068109]
[1727711678759,35.3715,155.56,155.47,10.4125729]
[1727711679052,6.4292,155.54,155.47,10.4125729]
[1727711680471,6.4288,155.55,155.47,10.4125729]
[1727711680753,8.0168074,155.54,155.47,10.4125729]
[1727711681351,8.0168074,155.54,155.38,29.10214856]
[1727711681553,6.4292,155.54,155.47,10.4125729]
[1727711682144,6.4289,155.55,155.47,10.4125729]
[1727711682343,6.4285,155.56,155.47,10.4125729]
[1727711682539,6.4288,155.55,155.49,10.4125729]
[1727711683273,1.5876074,155.58,155.49,10.4125729]
[1727711683274,6.4286,155.56,155.49,10.4125729]
[1727711683931,6.4288,155.55,155.49,10.4125729]
[1727711684154,6.4288,155.55,155.39,30.0]
[1727711684155,6.4321,155.48,155.38,7.77498444]
[1727711684361,6.4313,155.49,155.41,10.4125729]
[1727711684832,1.5876074,155.48,155.41,10.4125729]
[1727711685244,6.4313,155.49,155.41,10.4125729]
[1727711685457,1.5876074,155.48,155.41,10.4125729]
[1727711686867,1.5876074,155.47,155.41,10.4125729]
[1727711687155,6.4319,155.48,155.41,10.4125729]
[1727711687353,6.4312,155.5,155.41,10.4125729]
[1727711687560,6.4313,155.49,155.41,10.4125729]
[1727711688560,1.5876074,155.48,155.41,10.4125729]
[1727711690163,8.0195074,155.48,155.41,10.4125729]
[1727711690363,8.0200074,155.47,155.38,1.1068109]
[1727711690659,6.4325,155.46,155.38,11.5193838]
[1727711690843,1.5876074,155.45,155.4,10.4125729]
[1727711691345,6.4317,155.48,155.4,10.4125729]
[1727711691552,22.9825,155.48,155.4,10.4125729]
[1727711691851,1.5876074,155.47,155.4,10.4125729]
[1727711692845,8.0197074,155.47,155.4,10.4125729]
[1727711694443,6.4328,155.46,155.38,11.5193838]
[1727711694763,6.4328,155.46,155.39,3.93198557]
[1727711694963,6.4328,155.46,155.4,3.93198557]
[1727711695152,6.4328,155.46,155.39,3.93198557]
[1727711695357,1.5876074,155.45,155.4,3.93198557]
[1727711695656,1.5876074,155.45,155.39,3.93198557]
[1727711695864,6.4328,155.46,155.39,3.93198557]
[1727711696162,6.4328,155.46,155.38,11.5193838]
[1727711696361,6.4328,155.46,155.4,3.93277183]
[1727711696665,6.4328,155.46,155.41,3.93264945]
[1727711696850,1.5876074,155.45,155.39,3.93264945]
[1727711697046,1.5876074,155.45,155.4,3.93264945]
[1727711697236,1.5876074,155.45,155.41,3.93264945]
[1727711697439,1.5876074,155.45,155.39,3.93264945]
[1727711697641,6.4321,155.47,155.4,14.34522235]
[1727711697850,16.5508,155.48,155.41,3.93264945]
[1727711698057,16.5508,155.48,155.42,14.34522235]
[1727711698058,1.5876074,155.47,155.42,14.34522235]
[1727711698262,1.5876074,155.47,155.43,3.93264945]
[1727711700166,6.4309,155.5,155.44,3.93264945]
[1727711700371,1.5876074,155.49,155.43,3.93264945]
[1727711700552,6.4309,155.5,155.44,3.93264945]
[1727711700865,6.4309,155.5,155.45,3.93264945]
[1727711701048,6.4309,155.5,155.43,3.93264945]
[1727711701259,1.5876074,155.51,155.44,3.93264945]
[1727711701260,6.4313,155.49,155.44,3.93264945]
[1727711701560,6.4309,155.5,155.45,3.93264945]
[1727711701767,8.0188074,155.49,155.45,3.93264945]
[1727711702160,6.4312,155.49,155.45,3.93264945]
[1727711704064,1.5876074,155.48,155.45,3.93264945]
[1727711704770,1.5876074,155.48,155.43,10.4125729]
[1727711704974,1.5876074,155.48,155.44,3.93264945]
[1727711705270,1.5876074,155.48,155.45,3.93264945]
[1727711705471,1.5876074,155.48,155.44,3.93264945]
[1727711705669,1.5876074,155.48,155.45,3.93289482]
[1727711706050,1.5876074,155.48,155.44,3.93289482]
[1727711706360,6.4309,155.5,155.45,3.93289482]
[1727711706667,6.4309,155.5,155.44,3.93289482]
[1727711706861,6.4305,155.51,155.45,14.34546772]
[1727711707059,6.4305,155.51,155.46,3.93289482]
[1727711707761,6.431,155.5,155.46,3.93289482]
[1727711710274,6.4305,155.51,155.46,3.93289482]
[1727711710451,6.4305,155.51,155.47,3.93289482]
[1727711710772,6.4305,155.51,155.45,10.4125729]
[1727711710773,6.4305,155.51,155.46,3.93289482]
[1727711710951,6.4305,155.51,155.47,3.93289482]
[1727711711148,6.4321,155.47,155.46,3.93289482]
[1727711711356,6.435,155.4,155.39,3.93300461]
[1727711711674,6.435,155.4,155.38,1.1068109]
[1727711711854,6.4359,155.38,155.34,0.3816776]
[1727711712051,20.413,155.45,155.34,0.3816776]
[1727711712052,6.4368,155.36,155.34,0.3816776]
[1727711712280,19.79344795,155.35,155.34,0.3816776]
[1727711712449,1.5876074,155.35,155.26,6.6757898]
[1727711712652,6.4377,155.34,155.26,6.6757898]
[1727711712874,9.26686416,155.41,155.26,6.6757898]
[1727711712875,24.92088413,155.41,155.26,6.6757898]
[1727711713170,32.1691,155.43,155.23,0.847778]
[1727711713171,16.0957,155.33,155.23,0.847778]
[1727711713394,6.4414,155.25,155.23,0.847778]
[1727711713678,1.5876074,155.24,155.23,0.847778]
[1727711713854,17.24162737,155.24,155.23,0.847778]
[1727711714355,15.65401997,155.24,155.23,0.847778]
[1727711714563,17.24162737,155.24,155.23,0.847778]
[1727711715651,15.65401997,155.24,155.23,0.847778]
[1727711716258,17.24162737,155.24,155.23,0.847778]
[1727711717680,17.24162737,155.24,155.14,6.5573]
[1727711717875,6.4426,155.22,155.14,6.5573]
[1727711718067,22.09591997,155.24,155.14,6.5573]
[1727711718777,6.4422,155.23,155.14,6.5573]
[1727711718958,8.0298074,155.23,155.14,6.5573]
[1727711719970,6.4407,155.27,155.15,1.28898881]
[1727711720154,6.4408,155.26,155.14,22.89947611]
[1727711720675,6.4405,155.27,155.14,22.89947611]
[1727711720979,8.0281074,155.27,155.16,16.34217611]
[1727711721354,6.4405,155.27,155.16,16.34217611]
[1727711721554,1.5876074,155.26,155.16,16.34217611]
[1727711721772,16.0952,155.33,155.17,22.4681]
[1727711722074,16.0952,155.33,155.18,16.34217611]
[1727711722457,6.4399,155.29,155.18,16.34217611]
[1727711723360,1.5876074,155.28,155.18,16.34217611]
[1727711723760,6.4399,155.28,155.18,16.34217611]
[1727711724357,1.5876074,155.32,155.18,16.34217611]
[1727711724687,6.4404,155.27,155.18,16.34217611]
[1727711724892,1.5876074,155.26,155.17,22.4681]
[1727711725176,1.5876074,155.3,155.17,22.4681]
[1727711725585,16.0978,155.31,155.18,1.28853094]
[1727711725791,16.0978,155.31,155.17,22.4681]
[1727711725792,1.5876074,155.3,155.17,22.4681]
[1727711726083,6.4408,155.26,155.17,22.4681]
[1727711726582,1.5876074,155.25,155.17,22.4681]
[1727711727085,8.0289074,155.25,155.17,22.4681]
[1727711727379,1.5876074,155.24,155.17,22.4681]
[1727711728400,6.4429,155.21,155.17,22.4681]
[1727711728566,1.5876074,155.2,155.17,22.4681]
[1727711728769,8.0309074,155.2,155.17,6.2654]
[1727711728967,6.4433,155.2,155.17,6.2654]
[1727711729385,16.1017,155.27,155.17,6.2654]
[1727711729588,1.5876074,155.26,155.17,6.2654]
[1727711729765,6.4429,155.21,155.17,6.2654]
[1727711730567,6.4421,155.23,155.17,6.2654]
[1727711730969,6.4418,155.24,155.17,6.2654]
[1727711731189,8.06130494,155.28,155.19,16.615]
[1727711731492,16.0909,155.37,155.24,16.34217611]
[1727711731794,6.438,155.33,155.25,23.92125346]
[1727711732086,16.0909,155.37,155.26,17.63008117]
[1727711732087,6.4375,155.34,155.26,17.63008117]
[1727711732589,6.437,155.35,155.26,16.34217611]
[1727711732793,1.5876074,155.33,155.26,16.34217611]
[1727711732970,6.437,155.35,155.26,16.34217611]
[1727711733294,6.4365,155.37,155.28,16.34217611]
[1727711733597,6.4365,155.37,155.26,26.09371981]
[1727711733969,8.0242074,155.36,155.26,26.09371981]
[1727711734375,6.4366,155.36,155.26,26.09371981]
[1727711734872,16.0871,155.41,155.27,1.28771494]
[1727711735185,6.4362,155.37,155.26,26.09371981]
[1727711735393,8.0242074,155.36,155.26,26.09371981]
[1727711735923,1.5876074,155.36,155.25,22.6333]
[1727711736082,6.4378,155.34,155.25,22.6333]
[1727711736272,46.35819906,155.43,155.26,1.28782324]
[1727711736463,6.4359,155.38,155.27,26.09371981]
[1727711736863,6.4359,155.38,155.28,6.398]
[1727711737289,8.0238074,155.37,155.28,6.398]
[1727711737485,1.5876074,155.36,155.28,6.398]
[1727711737692,6.4358,155.38,155.28,6.398]
[1727711737874,16.0856,155.42,155.28,6.398]
[1727711737875,6.4354,155.39,155.28,6.398]
[1727711738083,16.0856,155.42,155.28,6.398]
[1727711738294,6.4359,155.38,155.28,6.398]
[1727711738778,6.4367,155.36,155.28,6.398]
[1727711738990,1.5876074,155.35,155.28,6.398]
[1727711739678,8.0249074,155.35,155.28,6.398]
[1727711739882,1.5876074,155.34,155.28,6.398]
[1727711740078,8.0252074,155.34,155.28,6.398]
[1727711740279,1.5876074,155.33,155.28,6.398]
[1727711741376,6.437,155.35,155.28,6.398]
[1727711741578,1.5876074,155.34,155.28,6.398]
[1727711743105,6.4367,155.36,155.28,6.398]
[1727711743274,1.5876074,155.35,155.28,6.398]
[1727711743480,6.4366,155.37,155.28,6.398]
[1727711743689,8.0242074,155.36,155.28,6.398]
[1727711743890,6.4374,155.35,155.28,6.398]
[1727711744371,1.5876074,155.34,155.28,6.398]
[1727711744792,6.4383,155.32,155.28,6.398]
[1727711744997,1.5876074,155.31,155.28,6.398]
[1727711745698,8.0264074,155.31,155.28,6.398]
[1727711745900,1.5876074,155.3,155.28,6.398]
[1727711746394,8.0267074,155.3,155.28,6.398]
[1727711746700,1.5876074,155.29,155.28,6.398]
[1727711747103,6.4388,155.31,155.28,6.398]
[1727711747481,6.4386,155.32,155.28,6.398]
[1727711748388,1.5876074,155.31,155.28,6.398]
[1727711748696,48.2671,155.39,155.28,6.398]
[1727711748900,1.5876074,155.38,155.28,6.398]
[1727711749277,6.4367,155.36,155.28,6.398]
[1727711749586,1.5876074,155.35,155.28,6.398]
[1727711751507,6.4392,155.3,155.25,16.615]
[1727711751710,1.5876074,155.29,155.25,16.615]
[1727711752275,1.5876074,155.34,155.25,16.615]
[1727711752493,6.4388,155.31,155.25,16.615]
[1727711753085,6.4384,155.32,155.25,16.615]
[1727711753290,1.5876074,155.31,155.25,16.615]
[1727711753705,6.4379,155.33,155.25,16.615]
[1727711754201,1.5876074,155.32,155.25,16.615]
[1727711754884,8.0259074,155.32,155.25,16.615]
[1727711755096,1.5876074,155.31,155.25,16.615]
[1727711755403,6.4391,155.3,155.25,16.615]
[1727711755606,1.5876074,155.29,155.25,16.615]
[1727711756713,8.0273074,155.29,155.25,16.615]
[1727711757003,1.5876074,155.33,155.25,16.615]
[1727711757387,6.4395,155.3,155.25,16.615]
[1727711757589,1.5876074,155.29,155.25,16.615]
[1727711757790,1.5876074,155.33,155.25,16.615]
[1727711758179,1.5876074,155.33,155.24,6.2879]
[1727711758418,6.4402,155.28,155.24,6.2879]
[1727711758601,1.5876074,155.27,155.24,6.2879]
[1727711758876,1.5876074,155.26,155.21,15.0283]
[1727711759080,1.5876074,155.26,155.2,6.3517]
[1727711759897,17.6881074,155.28,155.2,6.3517]
[1727711760088,6.4412,155.25,155.2,6.3517]
[1727711760290,1.5876074,155.24,155.2,6.3517]
[1727711760988,6.44,155.28,155.2,6.3517]
[1727711761190,1.5876074,155.34,155.2,6.3517]
[1727711761379,6.4395,155.29,155.2,6.3517]
[1727711761583,1.5876074,155.28,155.2,6.3517]
[1727711762291,35.394,155.34,155.2,6.3517]
[1727711762292,16.0964,155.32,155.2,6.3517]
[1727711762500,1.5876074,155.31,155.2,6.3517]
[1727711763300,6.4412,155.25,155.2,6.3517]
[1727711763508,1.5876074,155.24,155.2,6.3517]
[1727711764807,35.3964,155.32,155.2,6.3517]
[1727711764808,6.4409,155.26,155.2,6.3517]
[1727711765113,1.5876074,155.25,155.2,6.3517]
[1727711765410,6.4416,155.24,155.2,6.3517]
[1727711765611,1.5876074,155.23,155.2,6.3517]
[1727711766205,6.4416,155.24,155.2,6.3517]
[1727711766513,6.442,155.23,155.17,16.3362]
[1727711766809,6.4429,155.21,155.17,16.3362]
[1727711766986,1.5876074,155.2,155.17,16.3362]
[1727711767190,1.5876074,155.2,155.16,6.2495]
[1727711767191,6.4438,155.19,155.16,6.2495]
[1727711767413,1.5876074,155.18,155.13,15.1701]
[1727711767599,8.0324074,155.17,155.12,6.2495]
[1727711767915,1.5876074,155.16,155.12,6.2495]
[1727711768085,8.0326074,155.16,155.12,6.2495]
[1727711768422,1.5876074,155.15,155.12,6.2495]
[1727711768793,6.4445,155.17,155.12,5.7495]
[1727711769115,6.4432,155.21,155.13,1.28924526]
[1727711769319,1.5876074,155.22,155.12,5.7495]